bitfinex/quotes_ETHUSD_20251019
["timestamp","ask_amount","ask_price","bid_price","bid_amount"]
[1760867767573,0.53142536,3926.8,3926.3,0.002]
[1760867767865,2.54686226,3926.4,3926.3,0.002]
[1760867768234,3.01176226,3926.4,3926.3,0.002]
[1760867769053,3.058,3926.7,3926.3,0.002]
[1760867769241,2.5468277,3926.5,3926.3,0.002]
[1760867769450,0.2212,3926.9,3926.3,0.002]
[1760867769655,2.54681211,3926.5,3926.3,0.002]
[1760867769845,2.54686226,3926.4,3926.3,0.002]
[1760867770040,0.81504365,3926.5,3926.3,0.002]
[1760867770365,2.54679798,3926.5,3926.3,0.002]
[1760867770665,3.2772,3926.9,3926.3,0.002]
[1760867770966,2.99436226,3926.4,3926.3,0.002]
[1760867771260,2.54686226,3926.4,3926.3,0.002]
[1760867771428,3.2762,3926.9,3926.3,0.002]
[1760867771631,2.05562,3926.8,3926.3,0.002]
[1760867771862,3.2762,3926.9,3926.3,0.002]
[1760867772567,2.54660444,3926.8,3926.3,0.002]
[1760867772766,3.2762,3926.9,3926.3,0.002]
[1760867772970,2.54670084,3926.7,3926.3,0.002]
[1760867773177,0.4475,3926.8,3926.3,0.002]
[1760867773471,0.37237,3926.7,3926.3,0.002]
[1760867773672,1.728,3927.5,3926.3,0.01240535]
[1760867773841,1.728,3927.3,3926.3,0.4576]
[1760867774040,2.54634816,3927.2,3926.3,3.00447199]
[1760867774253,2.54634816,3927.2,3926.4,2.54685694]
[1760867774432,2.54648488,3927.0,3926.3,0.002]
[1760867774635,2.54634345,3927.2,3926.3,0.002]
[1760867774958,2.99378971,3927.3,3926.3,0.002]
[1760867775132,2.99378971,3927.3,3926.4,2.54686226]
[1760867775332,0.83298157,3930.4,3927.2,0.1612]
[1760867775333,0.2166,3927.9,3927.2,0.1612]
[1760867775535,0.2166,3927.9,3927.1,0.1612]
[1760867775771,2.54602755,3927.7,3927.1,0.1612]
[1760867775967,1.728,3927.9,3927.1,0.1612]
[1760867776267,0.001,3928.2,3927.7,0.1272]
[1760867776465,0.001,3928.2,3927.1,3.16318955]
[1760867776665,2.54577979,3928.1,3927.1,0.6168]
[1760867776865,2.54577979,3928.1,3927.3,2.54626791]
[1760867777072,0.001,3928.2,3927.4,2.5461841]
[1760867777668,0.001,3928.2,3927.5,3.00172185]
[1760867777978,0.001,3928.2,3927.7,2.54601929]
[1760867778149,0.001,3928.2,3927.7,2.55114218]
[1760867778342,0.001,3928.2,3927.7,3.00161929]
[1760867779276,0.001,3928.2,3927.7,3.01274981]
[1760867779598,0.001,3928.2,3927.7,0.4556]
[1760867779803,0.001,3928.2,3927.7,3.00161929]
[1760867781507,0.001,3928.2,3927.7,3.02707948]
[1760867782202,0.001,3928.2,3927.7,3.00161929]
[1760867782777,0.001,3928.2,3927.7,6.04761929]
[1760867784473,0.001,3928.2,3927.7,6.04561929]
[1760867784710,0.001,3928.2,3927.7,4.72961929]
[1760867784887,0.001,3928.2,3927.7,7.77361929]
[1760867786391,0.001,3928.2,3927.7,7.90081929]
[1760867786615,0.001,3928.2,3927.7,4.85681929]
[1760867786816,0.001,3928.2,3927.7,7.89881929]
[1760867787240,0.001,3928.2,3927.7,4.85681929]
[1760867787444,0.001,3928.2,3927.7,7.89781929]
[1760867787623,0.001,3928.2,3927.7,3.12881929]
[1760867787939,0.001,3928.2,3927.7,6.16981929]
[1760867788136,0.001,3928.2,3927.7,7.89781929]
[1760867789002,0.001,3928.2,3927.7,7.89681929]
[1760867789536,0.001,3928.2,3927.7,6.54321929]
[1760867789697,0.001,3928.2,3927.7,2.54601929]
[1760867789899,0.001,3928.2,3927.7,5.58501929]
[1760867790541,0.001,3928.2,3927.7,6.04061929]
[1760867791226,0.001,3928.2,3927.7,3.00161929]
[1760867791414,0.001,3928.2,3927.7,6.03961929]
[1760867791810,0.001,3928.2,3927.7,7.76761929]
[1760867792128,0.001,3928.2,3927.7,7.76661929]
[1760867792454,0.001,3928.2,3927.7,11.63661929]
[1760867794354,0.001,3928.2,3927.7,8.59961929]
[1760867794641,0.001,3928.2,3927.7,11.63661929]
[1760867795211,0.001,3928.2,3927.7,8.59961929]
[1760867795432,0.001,3928.2,3927.7,8.14401929]
[1760867795637,0.001,3928.2,3927.7,11.17801929]
[1760867795833,0.001,3928.2,3927.7,2.54601929]
[1760867796146,0.4311,3927.8,3927.7,5.57901929]
[1760867796356,0.001,3927.8,3927.7,5.57901929]
[1760867796864,0.4311,3927.8,3927.6,0.002]
[1760867797013,0.4301,3927.7,3927.6,2.54806746]
[1760867797438,0.001,3927.8,3927.7,2.54601929]
[1760867797784,0.4311,3927.8,3927.7,2.54601929]
[1760867798049,0.001,3927.8,3927.7,2.54601929]
[1760867799653,0.001,3927.8,3927.7,2.67321929]
[1760867799951,0.4311,3927.8,3927.7,2.67321929]
[1760867800452,0.001,3927.8,3927.7,2.67321929]
[1760867800954,0.4311,3927.8,3927.7,2.67321929]
[1760867801156,0.4311,3927.8,3927.7,5.70221929]
[1760867802756,0.4311,3927.8,3927.7,0.1272]
[1760867803260,0.75179057,3927.8,3927.7,0.1272]
[1760867803648,2.97705447,3927.8,3927.7,0.1272]
[1760867806344,0.4311,3927.8,3927.7,0.1272]
[1760867806653,2.97705447,3927.8,3927.7,0.1272]
[1760867807029,0.4311,3927.8,3927.7,0.1272]
[1760867807254,0.4311,3927.8,3927.7,0.00754917]
[1760867807461,4.27401929,3927.7,3927.6,0.002]
[1760867807762,9.52909589,3927.7,3927.6,0.002]
[1760867807967,2.54647313,3927.0,3926.9,0.002]
[1760867808166,2.54647313,3927.0,3925.5,0.002]
[1760867808167,2.54686226,3926.4,3925.5,0.002]
[1760867808666,2.95756226,3926.4,3925.5,0.002]
[1760867808964,5.98056226,3926.4,3925.5,0.002]
[1760867809179,3.83328538,3926.4,3925.5,0.002]
[1760867809777,6.85628538,3926.4,3925.5,0.002]
[1760867812159,6.19488538,3926.4,3925.5,0.002]
[1760867812369,8.58228538,3926.4,3925.5,0.002]
[1760867812680,5.56128538,3926.4,3925.5,0.002]
[1760867812850,8.58128538,3926.4,3925.5,0.002]
[1760867814978,5.56128538,3926.4,3925.5,0.002]
[1760867815178,8.58028538,3926.4,3925.5,0.002]
[1760867815380,9.21388538,3926.4,3925.5,0.002]
[1760867815554,5.56128538,3926.4,3925.5,0.002]
[1760867815756,8.57928538,3926.4,3925.5,0.002]
[1760867816601,5.56128538,3926.4,3925.6,2.54731879]
[1760867816905,0.04438468,3926.9,3925.5,0.4302]
[1760867817062,0.45508468,3926.9,3925.5,0.002]
[1760867817259,2.54686226,3926.4,3925.5,0.002]
[1760867817474,7.29186226,3926.4,3926.3,0.1292]
[1760867817673,7.70256226,3926.4,3926.3,0.1292]
[1760867817974,3.1636335,3926.4,3926.3,0.1292]
[1760867818172,3.017,3926.5,3926.3,0.1292]
[1760867818375,3.017,3926.5,3926.3,0.002]
[1760867818572,3.017,3926.5,3926.4,0.1272]
[1760867819690,3.4277,3926.5,3926.4,0.1272]
[1760867819992,5.9744974,3926.5,3926.4,0.1272]
[1760867820198,6.57194714,3926.5,3926.4,0.1272]
[1760867820871,3.14424714,3926.5,3926.3,0.002]
[1760867821071,3.14424714,3926.5,3926.4,0.1272]
[1760867821396,6.56894714,3926.5,3926.4,0.1272]
[1760867822495,2.54686226,3926.4,3926.3,0.002]
[1760867822685,5.18642394,3926.4,3926.3,0.002]
[1760867822870,6.23072394,3926.4,3926.3,0.002]
[1760867824017,6.23072394,3926.4,3925.5,0.002]
[1760867824018,2.54738129,3925.6,3925.5,0.002]
[1760867824227,8.17671942,3925.6,3925.5,0.002]
[1760867824431,8.17671942,3925.6,3923.0,0.2051]
[1760867824432,2.54783561,3924.9,3923.1,0.4282]
[1760867824612,7.50443561,3924.9,3923.1,0.4282]
[1760867824921,8.54483561,3924.9,3923.1,2.97714611]
[1760867825090,8.54483561,3924.9,3923.1,0.4282]
[1760867825513,8.54483561,3924.9,3923.3,2.5488653]
[1760867825938,8.54483561,3924.9,3923.1,0.4282]
[1760867826495,8.54483561,3924.9,3923.3,2.54887018]
[1760867826832,8.54483561,3924.9,3923.1,0.4282]
[1760867827122,8.54483561,3924.9,3923.1,0.4326]
[1760867827307,8.54483561,3924.9,3923.0,0.2051]
[1760867827510,8.54483561,3924.9,3922.6,0.4346]
[1760867827721,9.21881713,3924.9,3922.6,0.002]
[1760867827944,2.54909376,3923.0,3922.6,0.002]
[1760867828143,3.009,3922.9,3922.6,0.002]
[1760867828505,3.009,3922.9,3922.8,0.4346]
[1760867829119,3.009,3922.9,3922.8,0.002]
[1760867829517,4.737,3922.9,3922.8,0.002]
[1760867830431,7.28613456,3922.9,3922.8,0.002]
[1760867830760,8.65863098,3922.9,3922.8,0.002]
[1760867831258,9.29223098,3922.9,3922.8,0.002]
[1760867833811,5.22833098,3922.9,3922.8,0.002]
[1760867834018,0.0444263,3923.4,3922.8,0.002]
[1760867834327,3.005,3923.3,3923.1,0.1272]
[1760867834520,2.54893964,3923.2,3923.1,0.1272]
[1760867834844,2.54913456,3922.9,3922.8,0.002]
[1760867835157,3.18273456,3922.9,3922.8,0.002]
[1760867835392,6.67396636,3922.9,3922.8,0.002]
[1760867836650,6.26556636,3922.9,3922.8,0.002]
[1760867836861,8.63596636,3922.9,3922.8,0.002]
[1760867837610,3.003,3923.0,3922.8,0.5575]
[1760867837750,3.002,3923.0,3922.9,0.4283]
[1760867837950,3.002,3923.0,3922.9,0.5555]
[1760867838198,7.27906958,3923.0,3922.9,0.1272]
[1760867838982,7.27906958,3923.0,3922.8,0.002]
[1760867838983,4.91073456,3922.9,3922.8,0.002]
[1760867839284,5.00504152,3922.9,3922.8,0.002]
[1760867839869,8.00604152,3922.9,3922.8,0.002]
[1760867840450,8.41254152,3922.9,3922.8,0.002]
[1760867840649,9.04614152,3922.9,3922.8,0.002]
[1760867842458,5.00504152,3922.9,3922.8,0.002]
[1760867842780,8.41054152,3922.9,3922.8,0.002]
[1760867843011,9.04414152,3922.9,3922.8,0.002]
[1760867844914,8.63564152,3922.9,3922.8,0.002]
[1760867845110,9.04214152,3922.9,3922.8,0.002]
[1760867845900,8.63564152,3922.9,3922.8,0.002]
[1760867846288,9.04214152,3922.9,3922.8,0.002]
[1760867848006,8.63564152,3922.9,3922.8,0.002]
[1760867848390,9.04214152,3922.9,3922.8,0.002]
[1760867848795,8.63564152,3922.9,3922.8,0.002]
[1760867849196,8.63164152,3922.9,3922.8,0.002]
[1760867849397,9.03814152,3922.9,3922.8,0.002]
[1760867849888,7.99704152,3922.9,3922.8,0.002]
[1760867850218,5.54113456,3922.9,3922.8,0.4303]
[1760867850430,7.26913456,3922.9,3922.8,0.002]
[1760867850804,7.26913456,3922.9,3922.8,0.4303]
[1760867851133,7.26913456,3922.9,3922.8,0.002]
[1760867851631,4.27713456,3922.9,3922.8,0.002]
[1760867851807,7.26813456,3922.9,3922.8,0.002]
[1760867852010,8.24984919,3922.9,3922.8,0.002]
[1760867852812,7.26813456,3922.9,3922.8,0.4303]
[1760867853314,1.728,3922.9,3922.8,0.4303]
[1760867853510,1.728,3922.9,3922.8,0.002]
[1760867853820,4.27713456,3922.9,3922.8,0.00199976]
[1760867854232,1.728,3922.9,3922.8,0.43029976]
[1760867854841,0.04441864,3923.7,3922.8,0.43029976]
[1760867854842,2.989,3923.2,3922.8,0.43029976]
[1760867855048,1.728,3922.9,3922.8,0.43029976]
[1760867855333,1.728,3922.9,3922.8,0.00199976]
[1760867855814,1.728,3922.9,3922.8,0.43439976]
[1760867856146,4.27713456,3922.9,3922.8,0.00199976]
[1760867856352,1.728,3922.9,3922.8,0.00199976]
[1760867856645,4.27713456,3922.9,3922.8,0.00199976]
[1760867856816,1.728,3922.9,3922.8,0.00199976]
[1760867857015,1.77241864,3923.7,3922.8,0.43439976]
[1760867857222,2.54868581,3923.6,3922.8,2.9835538]
[1760867857400,0.04441864,3923.7,3922.9,0.4324]
[1760867857602,2.986,3923.8,3923.5,0.2071]
[1760867857806,2.986,3923.7,3923.6,0.4324]
[1760867858431,2.54827599,3924.3,3923.6,0.4324]
[1760867858656,1.728,3924.1,3923.6,0.4324]
[1760867858854,2.54822839,3924.3,3923.7,0.4324]
[1760867859136,1.728,3924.1,3923.7,0.4324]
[1760867859358,1.728,3924.1,3923.8,0.4324]
[1760867859557,1.728,3924.1,3923.9,0.4324]
[1760867859867,4.27635845,3924.1,3923.9,0.4324]
[1760867860173,2.54841997,3924.0,3923.5,0.2071]
[1760867860366,5.5332949,3924.2,3924.0,0.1272]
[1760867860566,2.54835503,3924.1,3924.0,0.1272]
[1760867860869,2.54935503,3924.1,3924.0,0.1272]
[1760867863552,0.001,3924.1,3924.0,0.5596]
[1760867869793,0.001,3924.1,3924.0,3.10801997]
[1760867869989,0.001,3924.1,3924.0,0.5596]
[1760867870191,1.001,3924.1,3924.0,0.5596]
[1760867872779,1.001,3924.1,3924.0,0.1272]
[1760867872978,1.001,3924.1,3924.0,0.5596]
[1760867873179,1.001,3924.1,3924.0,0.1272]
[1760867874216,6.91665503,3924.1,3924.0,0.1272]
[1760867874399,7.86314327,3924.1,3924.0,0.1272]
[1760867874602,4.49584327,3924.1,3924.0,0.1272]
[1760867874788,2.54846774,3924.0,3923.2,2.75603047]
[1760867875095,4.91748824,3924.1,3924.0,0.1272]
[1760867875096,7.46584327,3924.1,3924.0,0.1272]
[1760867875281,7.89934327,3924.1,3924.0,0.1272]
[1760867876670,9.62734327,3924.1,3924.0,0.1272]
[1760867876870,2.5488554,3923.4,3922.8,0.00199976]
[1760867877072,2.968,3923.3,3922.8,0.00199976]
[1760867877320,5.51690256,3923.3,3922.8,0.00199976]
[1760867877476,2.968,3923.3,3923.2,0.1272]
[1760867877895,3.2648,3923.3,3923.2,0.1272]
[1760867878108,5.81367467,3923.3,3923.2,0.1272]
[1760867878376,6.24477467,3923.3,3923.2,0.1272]
[1760867878597,5.81367467,3923.3,3923.2,0.1272]
[1760867878773,6.24477467,3923.3,3923.2,0.1272]
[1760867879471,5.81367467,3923.3,3923.2,0.1272]
[1760867879671,6.24477467,3923.3,3923.2,0.1272]
[1760867880385,6.24477467,3923.3,3922.8,0.00199976]
[1760867880386,2.54913456,3922.9,3922.8,0.00199976]
[1760867880616,2.54913456,3922.9,3922.8,0.12919976]
[1760867880617,6.25035272,3922.9,3922.8,0.12919976]
[1760867880833,6.67945272,3922.9,3922.8,0.12919976]
[1760867881134,6.67945272,3922.9,3922.8,0.00199976]
[1760867882200,3.71445272,3922.9,3922.8,0.00199976]
[1760867882408,6.67845272,3922.9,3922.8,0.00199976]
[1760867882636,8.40645272,3922.9,3922.8,0.00199976]
[1760867883426,9.04005272,3922.9,3922.8,0.00199976]
[1760867883624,3.28735272,3922.9,3922.8,0.00199976]
[1760867883815,6.25035272,3922.9,3922.8,0.00199976]
[1760867884013,6.67745272,3922.9,3922.8,0.00199976]
[1760867884409,6.02195272,3922.9,3922.8,0.00199976]
[1760867884820,6.44705272,3922.9,3922.8,0.00199976]
[1760867885016,6.02195272,3922.9,3922.8,0.00199976]
[1760867885419,0.23962417,3923.7,3922.8,0.00199976]
[1760867885631,2.54876429,3923.5,3922.8,0.43699976]
[1760867885948,2.961,3923.6,3923.4,0.1272]
[1760867886106,2.961,3923.6,3923.4,0.3343]
[1760867886430,2.961,3923.6,3923.5,0.1272]
[1760867886944,2.961,3923.6,3923.5,0.5622]
[1760867888137,1.001,3924.1,3923.5,0.5622]
[1760867888138,2.959,3924.0,3923.5,0.5622]
[1760867888434,2.959,3924.0,3923.9,0.1272]
[1760867889028,1.001,3924.1,3923.9,0.5622]
[1760867889231,1.001,3924.1,3924.0,0.435]
[1760867890221,1.001,3924.1,3923.9,2.67567209]
[1760867890422,1.001,3924.1,3923.9,0.1272]
[1760867890637,2.54841997,3924.0,3923.9,0.1272]
[1760867891008,1.001,3924.1,3923.9,0.1272]
[1760867891839,3.54937517,3924.1,3923.9,0.1272]
[1760867892011,2.54882537,3923.4,3922.8,0.00199976]
[1760867892356,2.956,3923.6,3922.8,0.00199976]
[1760867892509,5.50369485,3923.6,3922.8,0.00199976]
[1760867892707,2.955,3923.6,3922.8,0.00199976]
[1760867892907,2.54894201,3923.2,3922.8,0.00199976]
[1760867893335,2.54901624,3923.1,3922.8,0.00199976]
[1760867893718,2.54893964,3923.2,3922.8,0.00199976]
[1760867893913,2.54903071,3923.1,3922.8,0.00199976]
[1760867894437,2.54895262,3923.2,3922.8,0.00199976]
[1760867894949,2.54853214,3923.9,3923.1,0.2071]
[1760867895310,3.45382141,3923.9,3923.1,2.75605264]
[1760867895643,2.54849362,3923.9,3923.1,0.6626]
[1760867896027,1.001,3924.1,3923.1,0.6626]
[1760867896228,3.953,3924.1,3923.2,0.4555]
[1760867896429,1.001,3924.1,3923.3,2.54881318]
[1760867896629,1.001,3924.1,3923.1,0.2071]
[1760867896630,2.952,3924.0,3923.1,0.2071]
[1760867896933,1.07916,3923.9,3922.8,0.00199976]
[1760867897312,2.54899448,3923.2,3922.8,0.00199976]
[1760867897513,2.5488777,3923.3,3922.8,0.00199976]
[1760867897729,2.54895824,3923.2,3922.8,0.00199976]
[1760867897907,2.96755824,3923.2,3922.8,0.00199976]
[1760867898111,2.54900438,3923.2,3922.8,0.00199976]
[1760867898318,3.39574753,3923.2,3922.8,0.00199976]
[1760867899145,1.26534315,3923.2,3922.8,0.00199976]
[1760867899345,2.951,3923.4,3922.8,0.00199976]
[1760867899346,2.77253456,3922.9,3922.8,0.00199976]
[1760867899843,3.18353456,3922.9,3922.8,0.00199976]
[1760867900143,2.77253456,3922.9,3922.8,0.00199976]
[1760867900339,0.411,3923.3,3922.8,0.00199976]
[1760867900522,0.5596,3923.3,3922.8,0.00199976]
[1760867900921,2.951,3923.4,3922.8,0.45749976]
[1760867901123,5.49983034,3923.4,3922.8,0.45749976]
[1760867901317,2.951,3923.4,3922.8,0.45749976]
[1760867901839,2.54891085,3923.3,3922.8,0.00199976]
[1760867902209,2.54912449,3923.0,3922.8,0.00199976]
[1760867902415,2.54913456,3922.9,3922.8,0.00199976]
[1760867902742,2.96013456,3922.9,3922.8,0.00199976]
[1760867903113,5.32173456,3922.9,3922.8,0.00199976]
[1760867903525,5.65937554,3922.9,3922.8,0.00199976]
[1760867903713,5.65937554,3922.9,3922.1,0.1272]
[1760867903714,4.91086453,3922.7,3922.1,0.1272]
[1760867903921,2.55056495,3920.7,3919.9,0.4575]
[1760867904141,2.946,3921.0,3920.1,2.55093119]
[1760867904347,2.55047331,3920.9,3920.0,2.75811682]
[1760867904538,2.550515,3920.8,3920.0,2.75811682]
[1760867904732,2.550515,3920.8,3920.0,0.2071]
[1760867905321,5.49637519,3921.0,3920.1,2.55094955]
[1760867905764,2.946,3921.0,3920.1,2.55094646]
[1760867905959,2.946,3921.0,3920.3,2.55280664]
[1760867906165,2.944,3921.0,3920.3,0.002]
[1760867906520,5.49437252,3921.0,3920.3,0.002]
[1760867906735,2.944,3921.0,3920.3,0.002]
[1760867907024,2.944,3921.0,3920.3,2.55280897]
[1760867907340,5.4942314,3921.3,3920.3,2.55276423]
[1760867907754,2.5502416,3921.2,3920.3,2.55276423]
[1760867907951,2.5502416,3921.2,3920.4,2.550736]
[1760867908127,2.5502416,3921.2,3920.3,2.55281539]
[1760867908327,2.944,3921.3,3920.3,0.002]
[1760867908528,0.2982569,3921.2,3920.3,0.002]
[1760867908753,2.77396495,3920.7,3920.3,0.002]
[1760867908964,2.942,3920.7,3920.3,0.002]
[1760867909279,2.942,3921.0,3920.3,0.002]
[1760867909728,2.942,3921.0,3920.4,2.55073771]
[1760867910225,2.942,3921.0,3920.3,0.002]
[1760867910754,2.942,3921.0,3920.4,2.55069773]
[1760867911051,5.49239941,3921.0,3920.3,0.002]
[1760867911231,3.3483,3921.0,3920.3,0.002]
[1760867911421,0.12739469,3921.7,3920.4,2.55070342]
[1760867911622,2.55004462,3921.5,3920.7,0.4555]
[1760867911816,2.55004462,3921.5,3920.7,3.00606079]
[1760867912151,5.48999099,3921.6,3920.7,3.00606079]
[1760867912347,2.55006183,3921.5,3920.7,2.55056079]
[1760867912650,2.55006183,3921.5,3920.6,0.002]
[1760867912651,2.55006183,3921.5,3920.6,2.55256881]
[1760867912960,2.55026709,3921.2,3920.6,0.002]
[1760867913153,5.48926709,3921.2,3920.6,0.002]
[1760867913654,2.55032116,3921.1,3920.6,0.002]
[1760867913953,2.939,3921.2,3921.0,0.1272]
[1760867914123,5.48926042,3921.2,3921.0,0.1272]
[1760867914326,5.89556042,3921.2,3921.0,0.1272]
[1760867914527,2.939,3921.2,3921.0,0.1272]
[1760867914757,2.54980917,3921.9,3921.1,0.612]
[1760867914942,1.15027396,3922.9,3921.2,0.4488]
[1760867914943,0.12627751,3922.7,3921.2,0.4488]
[1760867915284,1.15027396,3922.9,3921.3,2.55017468]
[1760867915285,2.54920903,3922.8,3921.3,2.55017468]
[1760867915564,2.54920903,3922.8,3921.2,0.4488]
[1760867915565,2.937,3922.8,3922.2,2.54953394]
[1760867915876,2.937,3922.8,3922.7,0.1652]
[1760867916024,2.937,3922.8,3922.0,2.71491513]
[1760867916225,2.937,3922.8,3922.0,0.1652]
[1760867916652,2.54938426,3922.6,3922.0,0.1652]
[1760867916853,2.54944417,3922.5,3921.6,2.54997205]
[1760867917054,5.48620593,3922.8,3921.6,2.54992608]
[1760867917262,2.54938363,3922.6,3921.7,2.54990959]
[1760867917458,0.86644564,3922.6,3921.2,2.55019431]
[1760867917761,0.4009,3922.5,3921.1,0.1632]
[1760867918057,2.54984955,3921.8,3921.1,0.1632]
[1760867918259,0.2006,3921.9,3921.1,0.1632]
[1760867918662,0.2006,3921.9,3921.1,2.71347508]
[1760867918961,3.1356,3921.9,3921.1,0.1632]
[1760867919159,2.54991964,3921.7,3921.1,0.1632]
[1760867919340,0.8235261,3921.7,3920.6,0.002]
[1760867919540,0.4253,3921.6,3920.6,0.002]
[1760867919860,0.8235261,3921.7,3920.6,0.4508]
[1760867920029,2.934,3921.6,3920.6,0.4508]
[1760867920234,2.933,3921.6,3921.0,2.55036613]
[1760867920558,0.4253,3922.2,3921.1,0.1632]
[1760867920559,2.933,3921.7,3921.1,0.1632]
[1760867921185,3.54387795,3921.7,3920.6,0.002]
[1760867921342,0.4231,3921.6,3920.6,0.002]
[1760867921541,2.55004462,3921.5,3920.6,2.55261945]
[1760867921858,2.55005861,3921.5,3920.7,2.55055971]
[1760867922058,0.4231,3921.6,3920.6,2.55262634]
[1760867922260,2.55004462,3921.5,3920.6,2.55262634]
[1760867922448,2.932,3921.4,3920.6,0.002]
[1760867923174,2.932,3921.4,3920.7,2.55056495]
[1760867923356,2.932,3921.4,3920.6,0.002]
[1760867923357,2.55020041,3921.3,3920.6,0.002]
[1760867923558,2.5503142,3921.1,3920.6,0.002]
[1760867923755,2.932,3921.4,3920.6,0.002]
[1760867923962,5.48216267,3921.4,3920.6,0.002]
[1760867924673,2.55009846,3921.5,3921.3,0.1272]
[1760867924874,5.90320965,3921.4,3921.3,0.1272]
[1760867925677,3.3531,3921.4,3921.3,0.1272]
[1760867925877,5.90320965,3921.4,3921.3,0.1272]
[1760867926267,3.3531,3921.4,3921.3,0.1272]
[1760867926465,0.6259,3921.9,3921.3,0.1272]
[1760867926666,0.6259,3921.9,3920.6,0.002]
[1760867926667,5.47890108,3921.8,3921.0,2.55034261]
[1760867926973,2.928,3921.7,3920.6,0.002]
[1760867927173,6.25642231,3921.7,3920.6,2.55259498]
[1760867927348,3.70649,3921.7,3920.6,0.002]
[1760867927675,0.4231,3921.7,3920.8,2.55049448]
[1760867927874,2.97301457,3921.7,3921.6,0.1272]
[1760867928175,5.90001457,3921.7,3921.6,0.1272]
[1760867928551,5.47691457,3921.7,3921.6,0.1272]
[1760867928757,5.90001457,3921.7,3921.6,0.1272]
[1760867928955,6.76527846,3921.7,3921.6,0.1272]
[1760867930363,0.86526389,3921.7,3921.6,0.1272]
[1760867930556,0.001,3921.9,3921.6,0.1272]
[1760867930751,2.926,3921.9,3921.8,0.1272]
[1760867931566,6.10198454,3921.9,3921.8,0.1272]
[1760867933252,0.2375,3921.9,3921.8,0.1272]
[1760867933581,6.09998454,3921.9,3921.8,0.1272]
[1760867933750,6.70998299,3921.9,3921.8,0.1272]
[1760867934849,3.53299845,3921.9,3921.5,0.1632]
[1760867935047,0.001,3921.9,3921.2,0.1632]
[1760867935284,3.1216,3921.8,3921.0,0.002]
[1760867935595,2.921,3921.7,3921.1,0.1632]
[1760867935748,2.921,3921.7,3921.2,2.55023972]
[1760867935948,2.921,3921.7,3921.1,0.1632]
[1760867936180,2.55003397,3921.6,3921.0,0.002]
[1760867936483,2.54998461,3921.6,3921.0,0.002]
[1760867936691,2.55005529,3921.5,3921.0,0.002]
[1760867936911,2.55018072,3921.3,3921.0,0.002]
[1760867937125,5.47017468,3921.3,3921.0,0.002]
[1760867937306,6.31451078,3921.3,3921.0,0.002]
[1760867937922,6.31452123,3921.3,3921.0,0.002]
[1760867938308,3.7643361,3921.3,3921.0,0.002]
[1760867938508,6.31453685,3921.3,3921.0,0.002]
[1760867938808,3.7643361,3921.3,3921.0,0.002]
[1760867938982,2.55030476,3921.1,3921.0,0.002]
[1760867939187,0.31248,3921.7,3921.0,0.002]
[1760867939392,0.001,3924.9,3922.1,0.86443848]
[1760867939605,0.001,3924.9,3924.4,0.1106]
[1760867939810,0.001,3924.9,3924.6,1.728]
[1760867940127,0.001,3924.9,3924.8,2.54790052]
[1760867940339,0.001,3924.9,3922.9,2.54911657]
[1760867940661,0.001,3924.9,3924.3,2.54816084]
[1760867940795,0.2365,3924.8,3924.0,0.1106]
[1760867940983,4.16016746,3924.7,3924.1,2.54833161]
[1760867941186,4.64269421,3924.7,3923.6,0.1106]
[1760867941412,2.917,3924.6,3923.6,0.1106]
[1760867941786,2.917,3924.6,3923.4,0.1106]
[1760867941988,1.728,3924.5,3922.4,0.6336]
[1760867942182,2.54834856,3924.2,3922.4,3.18301522]
[1760867942387,3.21359486,3924.1,3923.2,2.54888123]
[1760867942701,3.21359486,3924.1,3923.1,2.5489926]
[1760867942702,0.4276,3924.0,3923.1,2.5489926]
[1760867943008,0.2365,3923.9,3923.1,2.54900343]
[1760867943385,0.2365,3923.9,3922.7,2.54922607]
[1760867943585,0.2365,3923.9,3922.5,2.54934456]
[1760867943806,2.93632843,3923.8,3922.3,2.68266043]
[1760867944122,0.4276,3923.7,3922.3,0.13317119]
[1760867944300,2.54870568,3923.6,3922.5,2.54938968]
[1760867944617,3.3418,3923.5,3922.5,2.54938968]
[1760867944848,3.3418,3923.5,3923.4,0.1272]
[1760867945137,3.96961863,3923.5,3923.4,0.1272]
[1760867945689,1.05561863,3923.5,3923.4,0.1272]
[1760867946016,3.3408,3923.5,3923.4,0.1272]
[1760867946220,0.4278,3923.5,3923.4,0.1272]
[1760867946390,3.3408,3923.5,3923.4,0.1272]
[1760867946594,1.728,3923.3,3922.3,2.54950338]
[1760867946792,5.0688,3923.5,3921.1,0.2211]
[1760867946793,3.88532776,3923.2,3921.1,0.2211]
[1760867947025,2.54901101,3923.1,3922.1,2.54959304]
[1760867947245,1.33638,3923.2,3921.6,0.002]
[1760867947246,0.4278,3923.0,3921.6,0.002]
[1760867947522,2.912,3922.9,3921.8,2.54983945]
[1760867947688,2.549205,3922.8,3921.7,2.54985305]
[1760867947887,1.27160318,3922.8,3921.6,0.002]
[1760867948089,1.27160318,3922.8,3921.6,2.55196571]
[1760867948300,2.911,3922.7,3921.8,2.54979775]
[1760867948899,2.911,3922.7,3921.7,2.54991105]
[1760867949206,2.97719376,3922.6,3921.6,0.002]
[1760867949407,3.82093032,3922.6,3921.6,0.002]
[1760867949601,1.27153656,3922.6,3921.6,0.002]
[1760867949910,2.91,3922.5,3921.6,0.002]
[1760867950112,2.91,3922.4,3921.9,2.54977582]
[1760867950441,3.3378,3922.4,3922.0,2.54971199]
[1760867950936,2.91,3922.4,3922.0,2.54971199]
[1760867951131,2.91,3922.4,3921.9,2.54978045]
[1760867951428,0.4278,3922.3,3921.6,2.55192337]
[1760867951629,0.4278,3922.3,3921.6,0.002]
[1760867951807,2.97733871,3922.3,3921.6,0.002]